fUSD/lending_fUSD_20260624
["ID","MTS","AMOUNT","RATE_DAILY","PERIOD"]
[426300757,1782258650000,-327.54284383,0.00026673,2]
[426300769,1782258650000,-391.72770676,0.00026673,2]
[426300770,1782258650000,-357.093912,0.00026673,2]
[426300768,1782258650000,-330.83653477,0.00026673,2]
[426300762,1782258650000,-365.53840142,0.00026673,2]
[426300761,1782258650000,-373.945516,0.00026673,2]
[426300764,1782258650000,-345.7571594,0.00026673,2]
[426300765,1782258650000,-389.47193293,0.00026673,2]
[426300763,1782258650000,-502.96199089,0.00026673,2]
[426300741,1782258650000,-221.81365674,0.00026671,2]
[426300749,1782258650000,-303.89740827,0.00026673,2]
[426300744,1782258650000,-242.02757478,0.00026671,2]
[426300731,1782258650000,-436.71193648,0.00026664,2]
[426300743,1782258650000,-154.30057292,0.00026671,2]
[426300767,1782258650000,-393.83389227,0.00026673,2]
[426300722,1782258650000,-308.43156813,0.00026664,2]
[426300719,1782258650000,-312.98929811,0.00026664,2]
[426300720,1782258650000,-309.00109476,0.00026664,2]
[426300718,1782258650000,-234.25279286,0.00026661,2]
[426300724,1782258650000,-411.66738721,0.00026664,2]
[426300723,1782258650000,-372.02436565,0.00026664,2]
[426300721,1782258650000,-311.7122306,0.00026664,2]
[426300725,1782258650000,-407.68973658,0.00026664,2]
[426300726,1782258650000,-430.17930097,0.00026664,2]
[426300729,1782258650000,-399.99907287,0.00026664,2]
[426300739,1782258650000,-238.95227734,0.00026671,2]
[426300728,1782258650000,-300.81395289,0.00026664,2]
[426300730,1782258650000,-309.96394595,0.00026664,2]
[426300732,1782258650000,-1148.95981443,0.00026664,2]
[426300736,1782258650000,-15239.35068509,0.00026667,2]
[426300733,1782258650000,-200.0,0.00026664,2]
[426300734,1782258650000,-200.0,0.00026664,2]
[426300735,1782258650000,-198.87217539,0.00026664,2]
[426300738,1782258650000,-154.22317271,0.00026671,2]
[426300748,1782258650000,-565.34773582,0.00026673,2]
[426300737,1782258650000,-631.0,0.00026667,8]
[426300740,1782258650000,-207.82224297,0.00026671,2]
[426300742,1782258650000,-215.22020598,0.00026671,2]
[426300727,1782258650000,-358.14685167,0.00026664,2]
[426300766,1782258650000,-339.85241118,0.00026673,2]
[426300774,1782258650000,-10005.87988317,0.000267,2]
[426300816,1782258650000,-15239.35068509,0.00027333,2]
[426300803,1782258650000,-357.0,0.00027122,7]
[426300797,1782258650000,-151.0,0.00027054,2]
[426300802,1782258650000,-15239.35068509,0.00027111,2]
[426300801,1782258650000,-643.17,0.00027074,2]
[426300807,1782258650000,-244.98,0.00027176,15]
[426300809,1782258650000,-200.0,0.000272,2]
[426300810,1782258650000,-200.0,0.000272,2]
[426300817,1782258650000,-587.0,0.00027355,2]
[426300808,1782258650000,-1919.93,0.00027187,2]
[426300806,1782258650000,-155.100243,0.00027161,7]
[426300812,1782258650000,-469.552669,0.00027234,2]
[426300796,1782258650000,-684.3557816,0.00027052,5]
[426300814,1782258650000,-631.0,0.00027273,9]
[426300815,1782258650000,-10005.87988317,0.000273,2]
[426300811,1782258650000,-2658.2,0.00027222,7]
[426300823,1782258650000,-190.56493826,0.00027397,7]
[426300819,1782258650000,-8295.14561913,0.0002739,2]
[426300820,1782258650000,-160.0,0.00027397,2]
[426300818,1782258650000,-819.50611093,0.0002739,2]
[426300821,1782258650000,-514.94169886,0.00027397,7]
[426300822,1782258650000,-296.04401315,0.00027397,7]
[426300825,1782258650000,-528.14517642,0.00027397,120]
[426300771,1782258650000,-337.00797599,0.00026673,2]
[426300824,1782258650000,-570.14631605,0.00027397,2]
[426300813,1782258650000,-13139.10938,0.00027237,3]
[426300804,1782258650000,-2000.0,0.00027129,2]
[426300805,1782258650000,-500.0,0.00027129,2]
[426300795,1782258650000,-170.05,0.00027043,2]
[426300775,1782258650000,-544.0,0.00026703,7]
[426300772,1782258650000,-332.11578966,0.00026673,2]
[426300773,1782258650000,-311.14405945,0.00026673,2]
[426300783,1782258650000,-14188.1021892,0.00026973,2]
[426300782,1782258650000,-525.62,0.00026945,120]
[426300778,1782258650000,-5826.0909,0.00026871,2]
[426300776,1782258650000,-1919.93,0.00026765,2]
[426300798,1782258650000,-151.0,0.00027054,2]
[426300779,1782258650000,-15239.35068509,0.00026889,2]
[426300781,1782258650000,-200.0,0.00026931,2]
[426300780,1782258650000,-200.0,0.00026931,2]
[426300784,1782258650000,-530.0,0.00026983,2]
[426300794,1782258650000,-152.0,0.00027023,6]
[426300777,1782258650000,-469.552669,0.000268,2]
[426300799,1782258650000,-471.528082,0.00027071,2]
[426300788,1782258650000,-10005.87988317,0.00027,2]
[426300787,1782258650000,-151.0,0.00027,2]
[426300789,1782258650000,-1000.0,0.00027,2]
[426300790,1782258650000,-151.0,0.00027,2]
[426300785,1782258650000,-169.4896224,0.00027,120]
[426300786,1782258650000,-10000.0,0.00027,2]
[426300792,1782258650000,-280.03725111,0.00027003,2]
[426300791,1782258650000,-151.0,0.00027,2]
[426300800,1782258650000,-482.46,0.00027074,2]
[426300793,1782258650000,-200.0,0.00027003,2]
[426300872,1782258651000,-242.986246,0.00027397,2]
[426300862,1782258651000,-401.508067,0.00027397,2]
[426300868,1782258651000,-401.508067,0.00027397,2]
[426300865,1782258651000,-401.508067,0.00027397,2]
[426300866,1782258651000,-401.508067,0.00027397,2]
[426300857,1782258651000,-401.508067,0.00027397,2]
[426300856,1782258651000,-1475.08,0.00027397,2]
[426300851,1782258651000,-161.795167,0.00027397,2]
[426300859,1782258651000,-401.508067,0.00027397,2]
[426300861,1782258651000,-401.508067,0.00027397,2]
[426300863,1782258651000,-401.508067,0.00027397,2]
[426300873,1782258651000,-242.986246,0.00027397,2]
[426300869,1782258651000,-242.986246,0.00027397,2]
[426300878,1782258651000,-242.986246,0.00027397,2]
[426300871,1782258651000,-242.986246,0.00027397,2]
[426300864,1782258651000,-401.508067,0.00027397,2]
[426300867,1782258651000,-401.508067,0.00027397,2]
[426300875,1782258651000,-242.986246,0.00027397,2]
[426300877,1782258651000,-242.986246,0.00027397,2]
[426300882,1782258651000,-1056.167942,0.00027397,2]
[426300876,1782258651000,-242.986246,0.00027397,2]
[426300881,1782258651000,-1056.167942,0.00027397,2]
[426300884,1782258651000,-1056.167942,0.00027397,2]
[426300874,1782258651000,-242.986246,0.00027397,2]
[426300880,1782258651000,-242.986246,0.00027397,2]
[426300860,1782258651000,-401.508067,0.00027397,2]
[426300870,1782258651000,-242.986246,0.00027397,2]
[426300853,1782258651000,-161.795167,0.00027397,2]
[426300829,1782258651000,-500.0,0.00027397,2]
[426300849,1782258651000,-161.795167,0.00027397,2]
[426300827,1782258651000,-500.0,0.00027397,2]
[426300826,1782258651000,-500.0,0.00027397,2]
[426300879,1782258651000,-242.986246,0.00027397,2]
[426300833,1782258651000,-500.0,0.00027397,2]
[426300828,1782258651000,-500.0,0.00027397,2]
[426300830,1782258651000,-500.0,0.00027397,2]
[426300834,1782258651000,-500.0,0.00027397,2]
[426300831,1782258651000,-500.0,0.00027397,2]
[426300832,1782258651000,-500.0,0.00027397,2]
[426300835,1782258651000,-500.0,0.00027397,2]
[426300837,1782258651000,-500.0,0.00027397,2]
[426300848,1782258651000,-161.795167,0.00027397,2]
[426300838,1782258651000,-500.0,0.00027397,2]
[426300836,1782258651000,-500.0,0.00027397,2]
[426300839,1782258651000,-500.0,0.00027397,2]
[426300847,1782258651000,-530.46,0.00027397,2]
[426300840,1782258651000,-500.0,0.00027397,2]
[426300841,1782258651000,-150.0,0.00027397,2]
[426300845,1782258651000,-1500.0,0.00027397,2]
[426300843,1782258651000,-151.27539475,0.00027397,10]
[426300844,1782258651000,-814.18765773,0.00027397,2]
[426300846,1782258651000,-241.07,0.00027397,31]
[426300842,1782258651000,-3000.0,0.00027397,2]
[426300855,1782258651000,-161.795167,0.00027397,2]
[426300858,1782258651000,-401.508067,0.00027397,2]
[426300850,1782258651000,-161.795167,0.00027397,2]
[426300852,1782258651000,-161.795167,0.00027397,2]
[426300854,1782258651000,-161.795167,0.00027397,2]
[426300883,1782258651000,-1056.167942,0.00027397,2]
[426300900,1782258651000,-2754.272956,0.00027397,2]
[426300886,1782258651000,-1056.167942,0.00027397,2]
[426300917,1782258651000,-200.23207802,0.00027397,2]
[426300914,1782258651000,-744.663884,0.00027397,2]
[426300916,1782258651000,-317.78399357,0.00027397,2]
[426300921,1782258651000,-250.0,0.00027397,120]
[426300922,1782258651000,-151.27539405,0.00027398,11]
[426300923,1782258651000,-861.82,0.000274,2]
[426300924,1782258651000,-2152.43,0.000274,7]
[426300925,1782258651000,-2077.78,0.000274,7]
[426300927,1782258651000,-1000.0,0.000274,2]
[426300931,1782258651000,-151.27539405,0.00027402,12]
[426300930,1782258651000,-150.0,0.000274,7]
[426300885,1782258651000,-1056.167942,0.00027397,2]
[426300926,1782258651000,-1000.0,0.000274,2]
[426300928,1782258651000,-1000.0,0.000274,2]
[426300937,1782258651000,-200.0,0.00027472,2]
[426300933,1782258651000,-185.0,0.0002742,5]
[426300935,1782258651000,-7908.0,0.00027449,10]
[426300934,1782258651000,-151.27539405,0.00027437,15]
[426300940,1782258651000,-10005.87988317,0.000275,2]
[426300932,1782258651000,-151.27539405,0.00027414,14]
[426300936,1782258651000,-200.0,0.00027472,2]
[426300943,1782258651000,-2175.0,0.000275,7]
[426300942,1782258651000,-500.0,0.000275,7]
[426300938,1782258651000,-151.27539405,0.00027476,16]
[426300939,1782258651000,-205.37326623,0.000275,2]
[426300941,1782258651000,-1435.304348,0.000275,30]
[426300944,1782258651000,-421.78980217,0.00027504,2]
[426300920,1782258651000,-150.0,0.00027397,30]
[426300919,1782258651000,-170.49245012,0.00027397,7]
[426300929,1782258651000,-1524.56,0.000274,2]
[426300911,1782258651000,-744.663884,0.00027397,2]
[426300912,1782258651000,-744.663884,0.00027397,2]
[426300893,1782258651000,-300.0,0.00027397,2]
[426300892,1782258651000,-1056.167942,0.00027397,2]
[426300887,1782258651000,-1056.167942,0.00027397,2]
[426300890,1782258651000,-1056.167942,0.00027397,2]
[426300889,1782258651000,-1056.167942,0.00027397,2]
[426300895,1782258651000,-1025.82,0.00027397,2]
[426300894,1782258651000,-3095.42,0.00027397,2]
[426300891,1782258651000,-1056.167942,0.00027397,2]
[426300899,1782258651000,-2754.272956,0.00027397,2]
[426300901,1782258651000,-2754.272956,0.00027397,2]
[426300907,1782258651000,-2754.272956,0.00027397,2]
[426300897,1782258651000,-2754.272956,0.00027397,2]
[426300888,1782258651000,-1056.167942,0.00027397,2]
[426300903,1782258651000,-2754.272956,0.00027397,2]
[426300898,1782258651000,-2754.272956,0.00027397,2]
[426300913,1782258651000,-744.663884,0.00027397,2]
[426300918,1782258651000,-296.04401315,0.00027397,7]
[426300908,1782258651000,-151.0,0.00027397,2]
[426300910,1782258651000,-18437.24,0.00027397,10]
[426300915,1782258651000,-158.89199679,0.00027397,2]
[426300909,1782258651000,-151.0,0.00027397,2]
[426300904,1782258651000,-2754.272956,0.00027397,2]
[426300896,1782258651000,-2754.272956,0.00027397,2]
[426300906,1782258651000,-2754.272956,0.00027397,2]
[426300905,1782258651000,-2754.272956,0.00027397,2]
[426300902,1782258651000,-2754.272956,0.00027397,2]
[426300987,1782258652000,-305.27841125,0.00027518,2]
[426300990,1782258652000,-518.82353543,0.00027521,2]
[426300984,1782258652000,-308.60114585,0.00027518,2]
[426300980,1782258652000,-259.64671177,0.00027518,2]
[426300982,1782258652000,-443.62731349,0.00027518,2]
[426300979,1782258652000,-212.4588555,0.00027518,2]
[426300975,1782258652000,-211.56122281,0.00027518,2]
[426300977,1782258652000,-360.91299125,0.00027518,2]
[426300974,1782258652000,-476.67599036,0.00027518,2]
[426300985,1782258652000,-484.05514957,0.00027518,2]
[426300976,1782258652000,-161.25019776,0.00027518,2]
[426300981,1782258652000,-415.64448593,0.00027518,2]
[426300983,1782258652000,-430.44041195,0.00027518,2]
[426300995,1782258652000,-551.3419379,0.00027521,2]
[426300986,1782258652000,-420.74537305,0.00027518,2]
[426300988,1782258652000,-525.62,0.00027521,120]
[426300992,1782258652000,-920.84673108,0.00027521,2]
[426300991,1782258652000,-499.62950898,0.00027521,2]
[426300994,1782258652000,-1019.77174166,0.00027521,2]
[426300997,1782258652000,-575.66861441,0.00027521,2]
[426300999,1782258652000,-649.53023351,0.00027521,2]
[426300998,1782258652000,-491.31426575,0.00027521,2]
[426300993,1782258652000,-505.08122046,0.00027521,2]
[426300996,1782258652000,-860.53852777,0.00027521,2]
[426301001,1782258652000,-626.45494605,0.00027521,2]
[426300970,1782258652000,-165.52322809,0.00027518,2]
[426300989,1782258652000,-455.8461124,0.00027521,2]
[426300972,1782258652000,-269.43331984,0.00027518,2]
[426301005,1782258652000,-518.63573911,0.00027521,2]
[426300973,1782258652000,-308.44634542,0.00027518,2]
[426300945,1782258652000,-305.16727419,0.00027504,2]
[426300955,1782258652000,-617.50108081,0.00027511,2]
[426300951,1782258652000,-473.19451053,0.00027508,2]
[426300947,1782258652000,-495.98597493,0.00027504,2]
[426300946,1782258652000,-245.84896075,0.00027504,2]
[426300950,1782258652000,-400.46415604,0.00027508,2]
[426300949,1782258652000,-418.49629614,0.00027504,2]
[426300948,1782258652000,-276.58142306,0.00027504,2]
[426300952,1782258652000,-468.50558572,0.00027508,2]
[426300954,1782258652000,-558.03654847,0.00027511,2]
[426300953,1782258652000,-462.6473522,0.00027511,2]
[426300958,1782258652000,-537.22027751,0.00027511,2]
[426300978,1782258652000,-477.90455468,0.00027518,2]
[426300960,1782258652000,-464.94591892,0.00027511,2]
[426300964,1782258652000,-957.46651203,0.00027511,2]
[426300961,1782258652000,-599.9986093,0.00027511,2]
[426300963,1782258652000,-655.06790472,0.00027511,2]
[426300966,1782258652000,-467.56834589,0.00027511,2]
[426300962,1782258652000,-577.54325094,0.00027511,2]
[426300959,1782258652000,-451.22092933,0.00027511,2]
[426300957,1782258652000,-645.26895146,0.00027511,2]
[426300967,1782258652000,-463.50164213,0.00027511,2]
[426300965,1782258652000,-469.48394716,0.00027511,2]
[426300969,1782258652000,-234.07175158,0.00027518,2]
[426300968,1782258652000,-274.21558053,0.00027518,2]
[426300971,1782258652000,-241.28386249,0.00027518,2]
[426300956,1782258652000,-611.53460487,0.00027511,2]
[426301000,1782258652000,-592.54889865,0.00027521,2]
[426301029,1782258652000,-983.4,0.0002758,7]
[426301004,1782258652000,-754.44298634,0.00027521,2]
[426301036,1782258652000,-983.4,0.00027641,2]
[426301035,1782258652000,-151.27539405,0.00027612,18]
[426301033,1782258652000,-983.4,0.00027611,30]
[426301039,1782258652000,-530.0,0.00027668,10]
[426301050,1782258652000,-161.795167,0.000277,7]
[426301038,1782258652000,-503.0,0.00027641,2]
[426301042,1782258652000,-1990.59026533,0.0002767,2]
[426301040,1782258652000,-469.552669,0.00027668,2]
[426301049,1782258652000,-161.795167,0.000277,7]
[426301041,1782258652000,-500.0,0.0002767,2]
[426301043,1782258652000,-983.4,0.00027672,7]
[426301044,1782258652000,-996.39,0.00027672,7]
[426301047,1782258652000,-151.0,0.000277,7]
[426301048,1782258652000,-151.0,0.000277,7]
[426301045,1782258652000,-45227.36845158,0.000277,2]
[426301046,1782258652000,-1135.5141172,0.000277,2]
[426301053,1782258652000,-200.0,0.000277,10]
[426301054,1782258652000,-1384.9,0.000277,7]
[426301052,1782258652000,-161.795167,0.000277,7]
[426301055,1782258652000,-983.4,0.00027702,30]
[426301060,1782258652000,-4367.98,0.00027711,7]
[426301056,1782258652000,-996.39,0.00027702,30]
[426301057,1782258652000,-2881.28,0.00027711,7]
[426301059,1782258652000,-2087.54,0.00027711,7]
[426301002,1782258652000,-560.918274,0.00027521,2]
[426301034,1782258652000,-996.39,0.00027611,30]
[426301037,1782258652000,-996.39,0.00027641,2]
[426301051,1782258652000,-161.795167,0.000277,7]
[426301027,1782258652000,-200.0,0.00027551,2]
[426301006,1782258652000,-584.20789939,0.00027521,2]
[426301032,1782258652000,-4000.0,0.00027608,10]
[426301009,1782258652000,-496.25480215,0.00027521,2]
[426301012,1782258652000,-498.1736845,0.00027521,2]
[426301011,1782258652000,-535.640868,0.00027521,2]
[426301008,1782258652000,-590.7508384,0.00027521,2]
[426301010,1782258652000,-587.59156014,0.00027521,2]
[426301007,1782258652000,-509.77861676,0.00027521,2]
[426301014,1782258652000,-151.27539405,0.00027533,17]
[426301024,1782258652000,-2090.84,0.0002755,30]
[426301025,1782258652000,-5032.68,0.0002755,30]
[426301015,1782258652000,-546.0,0.00027541,2]
[426301016,1782258652000,-285.941618,0.0002755,2]
[426301003,1782258652000,-548.30760213,0.00027521,2]
[426301020,1782258652000,-5032.75,0.0002755,30]
[426301031,1782258652000,-1919.93,0.00027608,2]
[426301013,1782258652000,-466.71608918,0.00027521,2]
[426301030,1782258652000,-996.39,0.0002758,7]
[426301028,1782258652000,-15239.35068509,0.00027556,2]
[426301058,1782258652000,-5032.75,0.00027711,7]
[426301022,1782258652000,-4367.98,0.0002755,30]
[426301026,1782258652000,-290.3986294,0.00027551,2]
[426301021,1782258652000,-2087.54,0.0002755,30]
[426301023,1782258652000,-996.39,0.0002755,2]
[426301019,1782258652000,-983.4,0.0002755,2]
[426301017,1782258652000,-158.0,0.0002755,2]
[426301018,1782258652000,-2881.28,0.0002755,30]
[426301076,1782258653000,-983.4,0.00027824,2]
[426301082,1782258653000,-2881.28,0.00027872,2]
[426301075,1782258653000,-200.0,0.000278,10]
[426301081,1782258653000,-152.0,0.00027867,7]
[426301094,1782258653000,-983.4,0.00027885,30]
[426301085,1782258653000,-4367.98,0.00027872,2]
[426301088,1782258653000,-151.0,0.00027876,2]
[426301092,1782258653000,-631.0,0.00027879,9]
[426301093,1782258653000,-258.93023208,0.00027885,30]
[426301091,1782258653000,-151.0,0.00027876,2]
[426301090,1782258653000,-151.0,0.00027876,2]
[426301089,1782258653000,-151.0,0.00027876,2]
[426301097,1782258653000,-5044.84610968,0.00027908,2]
[426301084,1782258653000,-2087.54,0.00027872,2]
[426301096,1782258653000,-200.0,0.000279,10]
[426301087,1782258653000,-5032.68,0.00027872,2]
[426301077,1782258653000,-996.39,0.00027824,2]
[426301068,1782258653000,-471.528082,0.00027777,2]
[426301083,1782258653000,-5032.75,0.00027872,2]
[426301095,1782258653000,-996.39,0.00027885,30]
[426301061,1782258653000,-2090.84,0.00027711,7]
[426301062,1782258653000,-5032.68,0.00027711,7]
[426301073,1782258653000,-2077.78,0.000278,7]
[426301063,1782258653000,-151.27539405,0.00027718,19]
[426301064,1782258653000,-983.4,0.00027733,2]
[426301066,1782258653000,-983.4,0.00027763,7]
[426301065,1782258653000,-996.39,0.00027733,2]
[426301067,1782258653000,-996.39,0.00027763,7]
[426301072,1782258653000,-2152.43,0.000278,7]
[426301071,1782258653000,-996.39,0.00027794,30]
[426301069,1782258653000,-15239.35068509,0.00027778,2]
[426301070,1782258653000,-983.4,0.00027794,30]
[426301074,1782258653000,-10005.87988317,0.000278,2]
[426301078,1782258653000,-151.27539405,0.00027854,21]
[426301079,1782258653000,-983.4,0.00027855,7]
[426301086,1782258653000,-2090.84,0.00027872,2]
[426301080,1782258653000,-996.39,0.00027855,7]
[426301108,1782258653000,-3000.0,0.00027945,2]
[426301105,1782258653000,-208.47,0.00027945,2]
[426301100,1782258653000,-996.39,0.00027916,2]
[426301121,1782258653000,-151.0,0.00027999,7]
[426301124,1782258653000,-1056.167942,0.00027999,7]
[426301123,1782258653000,-1056.167942,0.00027999,7]
[426301125,1782258653000,-1056.167942,0.00027999,7]
[426301126,1782258653000,-220.547498,0.00027999,7]
[426301127,1782258653000,-220.547498,0.00027999,7]
[426301129,1782258653000,-220.547498,0.00027999,7]
[426301128,1782258653000,-220.547498,0.00027999,7]
[426301130,1782258653000,-187.792673,0.00027999,7]
[426301131,1782258653000,-187.792673,0.00027999,7]
[426301134,1782258653000,-2508.16107959,0.00028,15]
[426301133,1782258653000,-187.792673,0.00027999,7]
[426301136,1782258653000,-300.0,0.00028,7]
[426301135,1782258653000,-681864.94662317,0.00028,2]
[426301137,1782258653000,-255714.19806955,0.00028,2]
[426301132,1782258653000,-187.792673,0.00027999,7]
[426301122,1782258653000,-1056.167942,0.00027999,7]
[426301116,1782258653000,-996.39,0.00027977,30]
[426301111,1782258653000,-996.39,0.00027946,7]
[426301099,1782258653000,-983.4,0.00027916,2]
[426301106,1782258653000,-239.88,0.00027945,2]
[426301098,1782258653000,-5044.84610968,0.00027915,2]
[426301103,1782258653000,-208.0,0.00027918,2]
[426301101,1782258653000,-350.0,0.00027917,3]
[426301104,1782258653000,-750.0,0.00027923,7]
[426301102,1782258653000,-513.0,0.00027918,2]
[426301107,1782258653000,-217.53,0.00027945,2]
[426301109,1782258653000,-814.18765773,0.00027945,2]
[426301110,1782258653000,-983.4,0.00027946,7]
[426301113,1782258653000,-500.0,0.0002797,2]
[426301114,1782258653000,-1000.0,0.0002797,2]
[426301112,1782258653000,-5044.84610968,0.0002795,2]
[426301117,1782258653000,-300.0,0.00027999,10]
[426301119,1782258653000,-295.660234,0.00027999,7]
[426301120,1782258653000,-151.0,0.00027999,7]
[426301118,1782258653000,-151.0,0.00027999,7]
[426301115,1782258653000,-983.4,0.00027977,30]
[426301138,1782258654000,-857.03103393,0.00028,2]
[426301139,1782258654000,-4078.79728351,0.00028,2]
[426301140,1782258654000,-500.0,0.00028,2]
[426301141,1782258807000,-500.0,0.00010605,2]
[426301142,1782258860000,-2988.64812719,0.00010563,2]
[426301143,1782258880000,-331.46287281,0.00010563,2]
[426301144,1782258929000,-180.977,0.00010563,2]
[426301145,1782258982000,-306.2215,0.00010605,2]
[426301146,1782259036000,-152.24793482,0.00010605,2]
[426301148,1782259089000,-250.0,0.00010605,2]
[426301149,1782259142000,-151.0,0.00010605,2]
[426301150,1782259196000,-152.0,0.00010605,2]
[426301151,1782259249000,-153.0,0.00010605,2]
[426301152,1782259471000,-306.36,0.00010075,2]
[426301153,1782259525000,-306.36,0.00010428,2]
[426301154,1782259578000,-763.41,9.825e-05,2]
[426301170,1782259631000,-150.0,9.531e-05,2]
[426301171,1782259684000,-1202.083419,7.945e-05,2]
[426301172,1782259738000,-150.0,7.707e-05,2]
[426301173,1782259791000,-150.0,7.476e-05,2]
[426301230,1782259844000,-150.0,7.251e-05,2]
[426301235,1782259845000,-193.37180304,8.223e-05,2]
[426301248,1782259845000,-500.0,9.574e-05,2]
[426301246,1782259845000,-894.03,9.418e-05,2]
[426301247,1782259845000,-164.44,9.479e-05,2]
[426301245,1782259845000,-10393.51279298,9.371e-05,2]
[426301243,1782259845000,-392.80543805,9.371e-05,2]
[426301244,1782259845000,-1108.62641723,9.371e-05,2]
[426301251,1782259845000,-577.15815386,9.578e-05,2]
[426301232,1782259845000,-250.0,7.849e-05,2]
[426301236,1782259845000,-250.0,8.223e-05,2]
[426301240,1782259845000,-128.75101563,9.371e-05,2]
[426301242,1782259845000,-1710.80159987,9.371e-05,2]
[426301238,1782259845000,-274.06,9.195e-05,2]
[426301239,1782259845000,-1874.09,9.217e-05,2]
[426301234,1782259845000,-1284.31081287,8.212e-05,2]
[426301233,1782259845000,-168.5848378,8e-05,2]
[426301231,1782259845000,-280.44765688,7.252e-05,2]
[426301237,1782259845000,-381.38387378,8.894e-05,2]
[426301253,1782259845000,-577.15815386,9.578e-05,2]
[426301241,1782259845000,-305.87152824,9.371e-05,2]
[426301252,1782259845000,-577.15815386,9.578e-05,2]
[426301250,1782259845000,-577.15815386,9.578e-05,2]
[426301270,1782259845000,-500.0,9.578e-05,2]
[426301268,1782259845000,-500.0,9.578e-05,2]
[426301271,1782259845000,-500.0,9.578e-05,2]
[426301267,1782259845000,-577.15815381,9.578e-05,2]
[426301266,1782259845000,-577.15815386,9.578e-05,2]
[426301265,1782259845000,-577.15815386,9.578e-05,2]
[426301264,1782259845000,-577.15815386,9.578e-05,2]
[426301263,1782259845000,-577.15815386,9.578e-05,2]
[426301269,1782259845000,-407.04078094,9.578e-05,2]
[426301262,1782259845000,-577.15815386,9.578e-05,2]
[426301260,1782259845000,-577.15815386,9.578e-05,2]
[426301257,1782259845000,-577.15815386,9.578e-05,2]
[426301259,1782259845000,-577.15815386,9.578e-05,2]
[426301261,1782259845000,-577.15815386,9.578e-05,2]
[426301255,1782259845000,-577.15815386,9.578e-05,2]
[426301256,1782259845000,-577.15815386,9.578e-05,2]
[426301254,1782259845000,-577.15815386,9.578e-05,2]
[426301258,1782259845000,-577.15815386,9.578e-05,2]
[426301249,1782259845000,-577.15815386,9.578e-05,2]
[426301289,1782259846000,-150.0,9.878e-05,2]
[426301290,1782259846000,-500.0,9.878e-05,2]
[426301292,1782259846000,-500.0,9.878e-05,2]
[426301291,1782259846000,-459.93822815,9.878e-05,2]
[426301293,1782259846000,-560.40448861,9.878e-05,2]
[426301303,1782259846000,-500.1372082,0.00010503,2]
[426301296,1782259846000,-250.0,0.00010035,2]
[426301295,1782259846000,-258.6255086,9.97e-05,2]
[426301300,1782259846000,-500.0,0.00010484,2]
[426301298,1782259846000,-150.0,0.00010115,2]
[426301294,1782259846000,-1286.60577136,9.879e-05,2]
[426301301,1782259846000,-150.0,0.00010502,2]
[426301288,1782259846000,-157.0,9.86e-05,2]
[426301302,1782259846000,-500.0,0.00010503,2]
[426301287,1782259846000,-841.01761825,9.803e-05,2]
[426301277,1782259846000,-255.17375,9.617e-05,2]
[426301282,1782259846000,-594.51546887,9.707e-05,2]
[426301286,1782259846000,-300.0,9.802e-05,2]
[426301280,1782259846000,-500.0,9.707e-05,2]
[426301284,1782259846000,-150.0,9.764e-05,2]
[426301281,1782259846000,-500.0,9.707e-05,2]
[426301285,1782259846000,-150.0,9.802e-05,2]
[426301279,1782259846000,-200.0,9.704e-05,2]
[426301278,1782259846000,-150.0,9.669e-05,2]
[426301272,1782259846000,-500.0,9.578e-05,2]
[426301274,1782259846000,-500.0,9.578e-05,2]
[426301273,1782259846000,-333.7644511,9.578e-05,2]
[426301276,1782259846000,-1025.71,9.579e-05,2]
[426301275,1782259846000,-392.50005692,9.578e-05,2]
[426301299,1782259846000,-193.0,0.00010484,2]
[426301283,1782259846000,-168.5848378,9.718e-05,2]